bitfinex-derivatives/quotes_ETHF0:USTF0_20250224
["timestamp","ask_amount","ask_price","bid_price","bid_amount"]
[1740434838555,3.2078,2583.5,2581.9,3.2078]
[1740434838865,8.84725958,2584.8,2581.9,3.2078]
[1740434838866,0.77411,2584.1,2583.2,0.77434]
[1740434839048,9.72345887,2585.5,2581.9,6.0]
[1740434839049,3.2078,2585.1,2583.7,3.2078]
[1740434839249,3.2078,2585.1,2584.0,3.2078]
[1740434839460,1.9338,2586.1,2584.0,1.31807448]
[1740434839461,0.77407,2584.2,2584.0,1.31807448]
[1740434839657,3.2078,2584.1,2583.3,3.2078]
[1740434839857,0.77419,2583.8,2583.7,0.01244386]
[1740434840150,3.2078,2583.8,2581.8,3.2078]
[1740434840549,3.2078,2583.8,2582.1,3.2078]
[1740434840751,1.9354,2583.9,2582.5,0.00580968]
[1740434841057,0.00580968,2584.0,2581.3,5.5223]
[1740434841058,0.77491,2581.4,2581.3,5.5223]
[1740434841358,0.77491,2581.4,2579.3,4.4403]
[1740434841359,3.2078,2581.4,2579.3,4.4403]
[1740434841559,3.2078,2580.3,2579.3,1.31807448]
[1740434841863,3.87652,2580.1,2578.5,6.71953246]
[1740434842061,3.2078,2580.2,2578.5,9.92733246]
[1740434842062,3.2078,2579.9,2578.5,9.92733246]
[1740434842256,1.93856,2579.7,2578.5,9.09748448]
[1740434842458,0.00580968,2579.6,2579.0,0.00580968]
[1740434842858,3.2078,2580.4,2579.0,0.00580968]
[1740434842859,0.77513,2580.7,2579.4,3.2078]
[1740434843059,1.93729,2581.4,2580.3,0.77523]
[1740434843060,0.77492,2581.4,2580.3,0.77523]
[1740434843362,3.2078,2582.7,2581.0,3.2078]
[1740434843553,3.2078,2582.7,2580.7,3.2078]
[1740434843554,0.7749,2581.5,2580.7,3.2078]
[1740434843856,3.2078,2581.9,2580.7,3.2078]
[1740434844058,0.00580968,2581.4,2580.8,0.00580968]
[1740434844261,3.2078,2582.1,2580.8,0.00580968]
[1740434844565,3.2078,2582.1,2580.9,1.54366116]
[1740434844757,3.2078,2583.2,2581.6,3.2078]
[1740434845058,3.2078,2583.1,2581.9,3.2078]
[1740434845255,1.93563,2583.7,2582.5,3.2078]
[1740434845456,0.77434,2583.3,2582.6,3.09711913]
[1740434845651,3.2078,2584.9,2582.9,3.2078]
[1740434845862,3.2078,2583.8,2583.0,3.09711913]
[1740434846067,0.77437,2583.2,2583.1,3.09711913]
[1740434846256,1.936,2583.1,2581.4,3.2078]
[1740434846452,3.2078,2582.4,2581.4,1.19723246]
[1740434846656,0.77488,2581.5,2581.4,1.19723246]
[1740434846958,0.77482,2581.7,2581.6,0.00580968]
[1740434847259,3.2078,2582.0,2581.6,0.00580968]
[1740434847658,3.2078,2581.7,2581.6,0.00580968]
[1740434847860,0.00580968,2582.1,2581.6,0.00580968]
[1740434847861,3.2078,2582.0,2581.6,0.00580968]
[1740434848062,0.00580968,2582.1,2581.6,0.00580968]
[1740434848265,3.2078,2583.6,2581.8,3.2078]
[1740434848560,3.2078,2583.3,2582.1,3.2078]
[1740434848761,3.2078,2584.3,2582.4,3.2078]
[1740434848968,3.2078,2584.3,2583.3,0.77432]
[1740434849154,3.2078,2584.7,2584.1,0.77409]
[1740434849360,3.2078,2584.7,2582.4,21.486]
[1740434849361,3.2078,2584.7,2583.6,3.2078]
[1740434849562,3.2078,2585.4,2583.7,1.09188014]
[1740434849859,5.14278,2584.5,2583.8,1.47991818]
[1740434850058,5.14278,2584.5,2583.5,0.00580968]
[1740434850059,3.98193,2584.0,2583.9,0.38803804]
[1740434850459,3.2078,2584.0,2583.9,0.38803804]
[1740434850764,0.00580968,2584.4,2583.6,3.2078]
[1740434850970,0.00580968,2584.4,2584.3,0.77404]
[1740434851164,3.2078,2585.5,2584.1,3.2078]
[1740434851363,3.2078,2586.0,2584.7,3.2078]
[1740434851561,3.2078,2586.2,2585.0,3.2078]
[1740434851863,0.77395,2584.6,2584.5,3.2078]
[1740434852164,1.93451,2585.1,2583.8,3.2078]
[1740434852165,3.2078,2585.1,2583.8,3.2078]
[1740434852470,0.0038259,2584.8,2584.3,0.00580968]
[1740434852664,3.2078,2586.0,2584.7,3.2078]
[1740434852870,24.6898,2586.4,2585.0,3.2078]
[1740434853169,0.77371,2585.4,2584.9,3.2078]
[1740434853465,0.77395,2584.6,2584.5,1.17230842]
[1740434853667,3.2078,2584.7,2583.8,3.2078]
[1740434853968,3.86778,2586.0,2583.0,3.2078]
[1740434854170,3.2078,2584.7,2583.3,1.93583]
[1740434854367,3.2078,2584.7,2583.3,1.93585]
[1740434854670,3.2078,2583.9,2582.5,6.58224]
[1740434854971,0.00580968,2584.3,2583.7,0.00580968]
[1740434855272,3.2078,2584.9,2584.1,1.93523]
[1740434855566,21.474,2586.1,2583.9,3.2078]
[1740434855567,3.2078,2585.5,2583.9,3.2078]
[1740434855763,3.2078,2585.4,2583.7,0.00580968]
[1740434855965,3.2078,2585.5,2583.7,0.00580968]
[1740434856178,3.2078,2584.9,2583.9,1.93535]
[1740434856367,3.2078,2585.7,2584.5,3.2078]
[1740434856568,3.2078,2586.5,2584.8,3.2078]
[1740434856760,3.2078,2586.5,2585.1,3.2078]
[1740434857070,3.2078,2586.5,2584.9,1.48461944]
[1740434857071,3.2078,2585.8,2584.7,1.48461944]
[1740434857265,3.2078,2586.0,2585.5,0.00580968]
[1740434857461,3.2078,2586.0,2584.2,3.2078]
[1740434857662,3.2078,2586.0,2584.8,3.2078]
[1740434857871,3.2078,2586.5,2585.2,1.93443]
[1740434858065,3.2078,2586.8,2585.5,3.2078]
[1740434858271,3.2078,2586.8,2585.6,1.48461944]
[1740434858468,13.57963769,2588.2,2585.6,1.48461944]
[1740434858469,3.2078,2587.0,2585.8,3.2078]
[1740434858674,3.2078,2587.4,2586.1,3.2078]
[1740434858865,0.00580968,2586.5,2586.1,3.2078]
[1740434859067,3.2078,2587.4,2586.6,0.77333]
[1740434859262,3.2078,2587.9,2586.7,3.2078]
[1740434859569,3.2078,2588.3,2587.0,3.2078]
[1740434859773,4.0947051,2588.5,2587.0,3.98103]
[1740434860068,4.0947051,2588.5,2587.6,3.2078]
[1740434860366,3.2078,2588.1,2587.4,3.2078]
[1740434860572,3.2078,2588.1,2586.5,3.98117]
[1740434860573,3.98072,2588.1,2586.5,3.98117]
[1740434860767,0.77296,2587.9,2587.8,0.00579811]
[1740434860971,3.2078,2588.1,2586.4,3.2078]
[1740434861268,3.2078,2586.5,2585.0,3.2078]
[1740434861467,3.2078,2585.6,2584.8,3.2078]
[1740434861667,3.2078,2586.7,2584.9,1.93465]
[1740434861872,3.2078,2587.0,2586.1,3.2078]
[1740434862072,3.2078,2587.5,2586.4,3.2078]
[1740434862267,3.2078,2588.0,2586.7,3.2078]
[1740434862471,3.2078,2587.9,2586.8,5.9377]
[1740434862668,2.80183683,2589.1,2586.8,5.9377]
[1740434862669,0.00575956,2587.2,2587.1,3.2078]
[1740434862870,3.2078,2588.5,2587.4,0.77309]
[1740434863066,3.2078,2588.5,2587.6,3.2078]
[1740434863271,3.2078,2588.1,2587.2,3.2078]
[1740434863465,3.2078,2588.7,2587.2,3.2078]
[1740434863665,3.2078,2588.4,2587.2,3.2078]
[1740434863865,0.77275,2588.7,2587.2,3.98095]
[1740434864066,3.2078,2589.0,2587.5,3.21359811]
[1740434864376,2.80183683,2589.1,2588.1,3.2078]
[1740434864670,3.2078,2589.4,2588.4,3.2078]
[1740434864870,3.2078,2589.1,2588.4,3.2078]
[1740434865077,3.2078,2588.8,2587.6,4.4169]
[1740434865272,3.2078,2589.2,2588.0,3.2078]
[1740434865480,1.93066,2590.3,2588.0,3.2078]
[1740434865481,3.2078,2589.5,2588.0,3.2078]
[1740434865777,3.2078,2590.3,2588.9,3.2078]
[1740434865966,2.80183683,2590.5,2589.2,3.2078]
[1740434866166,0.77228,2590.2,2589.5,3.2078]
[1740434866371,2.80183683,2590.5,2589.3,3.2078]
[1740434866580,2.80183683,2590.5,2589.6,0.00579811]
[1740434866978,0.77238,2589.9,2589.6,0.00579811]
[1740434867169,1.93062,2590.3,2589.6,0.00579811]
[1740434867376,3.2078,2589.9,2589.6,0.00579811]
[1740434867976,0.77242,2589.7,2589.6,8.11e-06]
[1740434868179,3.2078,2589.9,2589.6,8.11e-06]
[1740434868575,0.77242,2589.7,2589.6,8.11e-06]
[1740434868970,6.77242,2589.7,2589.6,8.11e-06]
[1740434869478,0.77242,2589.7,2589.6,8.11e-06]
[1740434870674,0.77242,2589.7,2589.6,6.00000811]
[1740434870874,3.21359,2589.9,2589.6,40.80000811]
[1740434871192,0.77242,2589.7,2589.6,8.11e-06]
[1740434871579,3.98022,2589.7,2589.6,8.11e-06]
[1740434871774,0.00579,2589.9,2589.6,6.00000811]
[1740434872471,0.77242,2589.7,2589.6,8.11e-06]
[1740434872677,3.2078,2590.0,2589.6,6.00000811]
[1740434872975,3.2078,2590.7,2589.6,6.00000811]
[1740434873170,0.09682879,2591.5,2590.1,3.2078]
[1740434873377,3.97981,2591.1,2590.4,3.2078]
[1740434873574,3.2078,2591.1,2590.4,3.2078]
[1740434873787,0.77191,2591.5,2590.6,0.77215]
[1740434873970,3.2078,2591.7,2590.4,3.2078]
[1740434874374,0.77194,2591.4,2590.5,0.77218]
[1740434874682,3.2078,2591.4,2590.2,5.8422]
[1740434874883,1.92988,2591.3,2590.2,5.8422]
[1740434875075,3.2078,2591.1,2590.3,3.98003]
[1740434875388,3.2078,2591.6,2590.9,3.2078]
[1740434875576,3.2078,2591.5,2590.7,21.419]
[1740434875973,3.2078,2591.5,2591.0,0.0057867]
[1740434876586,0.77184,2591.7,2591.0,6.0057867]
[1740434876777,0.7719,2591.5,2591.1,40.8]
[1740434877077,0.77201,2591.1,2591.0,0.0057867]
[1740434877472,0.77201,2591.1,2591.0,6.7e-06]
[1740434877676,3.98556665,2591.1,2591.0,6.7e-06]
[1740434878081,3.98556665,2591.1,2589.3,3.2078]
[1740434878082,6.0,2591.1,2589.3,3.2078]
[1740434878289,1.93042,2590.6,2589.3,3.2078]
[1740434878479,0.77229,2590.2,2589.3,3.98033]
[1740434878691,1.9304,2590.6,2589.3,3.2078]
[1740434878984,3.2078,2590.9,2589.8,3.2078]
[1740434879183,0.77248,2589.5,2589.4,3.2078]
[1740434879488,3.2078,2590.0,2588.9,5.4895]
[1740434879674,3.21354868,2590.6,2589.1,3.2078]
[1740434879882,3.21354868,2590.6,2589.4,3.2078]
[1740434880079,3.2078,2590.0,2589.2,0.0057867]
[1740434880281,0.77254,2589.3,2589.2,0.0057867]
[1740434880580,3.98034,2589.3,2589.2,6.7e-06]
[1740434880778,3.98608995,2589.3,2589.2,6.7e-06]
[1740434880974,3.86356,2588.8,2587.3,3.2078]
[1740434881187,0.77308,2587.5,2587.4,40.8]
[1740434881484,6.42134995,2587.5,2585.9,0.40357847]
[1740434881680,6.42134995,2587.5,2585.2,0.3864]
[1740434881681,6.42134995,2587.2,2585.6,21.415]
[1740434881985,0.77356,2585.9,2585.8,3.2078]
[1740434882485,3.2078,2585.9,2585.0,0.07736943]
[1740434882689,3.2078,2586.4,2585.6,0.00579811]
[1740434882889,3.21359811,2586.9,2585.6,0.00579811]
[1740434883080,0.7733,2586.8,2585.7,0.7736]
[1740434883285,0.00579811,2586.9,2586.0,3.2078]
[1740434883476,0.00579811,2586.9,2585.6,0.00579811]
[1740434883477,3.2078,2586.3,2585.6,0.00579811]
[1740434883681,3.2078,2586.0,2585.6,0.00579811]
[1740434883884,3.98716995,2585.7,2585.6,8.11e-06]
[1740434884089,3.13617241,2585.1,2584.3,3.2078]
[1740434884287,6.34397241,2584.4,2583.6,3.2078]
[1740434884490,6.34397241,2584.4,2583.3,21.415]
[1740434884491,3.2078,2583.7,2583.3,21.415]
[1740434884786,3.13617241,2584.0,2582.3,3.2078]
[1740434884787,3.2078,2583.8,2582.3,3.2078]
[1740434884980,6.34397241,2584.0,2582.6,3.2078]
[1740434885182,6.34397241,2584.0,2582.2,21.422]
[1740434885183,3.13617241,2583.2,2582.2,24.6298]
[1740434885477,0.00579811,2583.3,2582.7,0.00579811]
[1740434885678,0.77449,2582.8,2582.7,0.00579811]
[1740434885888,0.77481,2581.8,2581.1,24.6298]
[1740434886203,6.34397241,2582.8,2581.1,24.6298]
[1740434886204,3.13617241,2582.5,2581.4,3.2078]
[1740434886384,0.77436,2583.3,2582.0,3.98253]
[1740434886580,3.13617241,2583.7,2582.3,3.2078]
[1740434886792,3.2078,2583.7,2582.6,3.2078]
[1740434886990,6.34397241,2582.7,2581.9,3.2078]
[1740434887188,0.00580956,2583.4,2582.9,0.00580956]
[1740434887390,5.4412,2584.7,2582.9,0.00580956]
[1740434887391,3.2078,2584.0,2582.9,0.00580956]
[1740434887684,3.2078,2585.4,2583.9,3.2078]
[1740434887890,3.2078,2586.2,2584.2,3.2078]
[1740434888088,3.2078,2587.3,2585.5,3.2078]
[1740434888282,2.80183683,2588.0,2586.4,3.2078]
[1740434888481,1.93241,2587.9,2586.4,3.2078]
[1740434888684,3.2078,2587.7,2586.1,3.2078]
[1740434888888,3.2078,2586.8,2585.4,3.2078]
[1740434889393,1.93278,2587.4,2585.7,3.2078]
[1740434889587,3.21359688,2587.5,2585.7,3.2078]
[1740434889793,0.77362,2585.8,2585.4,3.2078]
[1740434890091,0.77362,2585.8,2584.1,5.5072]
[1740434890092,0.77359,2585.8,2585.7,3.2078]
[1740434890291,0.77369,2585.5,2585.4,3.2078]
[1740434890588,0.77371,2585.4,2585.3,6.88e-06]
[1740434890792,1.93436,2585.3,2584.3,3.2078]
[1740434891096,0.77401,2584.4,2584.3,3.2078]
[1740434891285,0.00579688,2585.9,2582.0,0.3872]
[1740434891286,0.77419,2583.8,2583.7,3.2078]
[1740434891486,1.93471,2584.9,2583.7,3.2078]
[1740434891692,0.77419,2583.8,2583.7,3.2078]
[1740434891893,3.2078,2584.0,2582.8,3.2078]
[1740434892093,3.2078,2583.4,2581.9,3.2078]
[1740434892295,0.77451,2582.8,2581.9,3.98254]
[1740434892492,3.2078,2583.3,2581.9,3.2078]
[1740434892796,3.2078,2582.7,2582.1,0.00580821]
[1740434892995,3.2078,2582.3,2582.1,0.00580821]
[1740434893192,0.77467,2582.2,2582.1,8.21e-06]
[1740434893387,0.00580821,2582.9,2582.1,8.21e-06]
[1740434893590,0.77467,2582.2,2582.1,8.21e-06]
[1740434893784,3.2078,2582.7,2582.1,8.21e-06]
[1740434894394,0.00580821,2582.9,2582.6,3.2078]
[1740434894594,0.00580821,2582.9,2582.8,0.77449]
[1740434894789,3.2078,2584.8,2582.6,9.2078]
[1740434894991,3.2078,2584.8,2584.3,0.77401]
[1740434895199,3.2078,2584.8,2583.8,3.2078]
[1740434895598,3.2078,2584.8,2583.2,3.2078]
[1740434895792,3.2078,2585.4,2584.1,3.2078]
[1740434896097,0.77392,2584.7,2584.6,40.8]
[1740434896289,3.2078,2585.3,2584.2,3.2078]
[1740434896490,3.21360821,2585.0,2583.7,0.00580821]
[1740434896685,3.2078,2584.7,2583.8,40.8]
[1740434896998,0.00580821,2585.0,2584.6,3.2078]
[1740434897195,2.80183683,2585.6,2585.5,0.77368]
[1740434897393,11.38846063,2586.6,2585.5,3.2078]
[1740434897394,8.18066063,2586.6,2585.5,3.2078]
[1740434897597,2.98827389,2586.0,2585.9,3.2078]
[1740434897798,2.98827389,2586.0,2585.9,44.78136]
[1740434898095,9.54410407,2586.9,2585.9,50.0078]
[1740434898295,9.54410407,2586.9,2586.8,3.98109]
[1740434898498,3.2078,2588.7,2586.8,3.2078]
[1740434898692,3.2078,2588.7,2586.0,4.57073952]
[1740434898693,2.98827522,2587.6,2587.1,3.2078]
[1740434898894,3.2078,2588.4,2587.1,3.2078]
[1740434899196,3.2078,2588.7,2588.1,3.2078]
[1740434899597,3.2078,2589.7,2588.4,3.2078]
[1740434899893,2.98827522,2589.2,2589.0,3.2078]
[1740434900095,3.2078,2590.2,2588.7,3.2078]
[1740434900289,2.98827522,2589.3,2588.6,3.2078]
[1740434900494,9.9943,2591.7,2587.3,4.4934]
[1740434900495,2.98827522,2588.7,2588.3,3.2078]
[1740434900696,2.98827522,2588.7,2587.3,4.4934]
[1740434900697,2.98827522,2588.4,2587.7,3.2078]
[1740434900997,0.00579654,2589.7,2587.1,3.2078]
[1740434900998,2.98827522,2587.4,2587.1,3.2078]
[1740434901211,3.2078,2587.5,2586.4,3.2078]
[1740434901496,2.98827522,2587.3,2587.0,3.21359654]
[1740434901698,0.00579654,2587.5,2587.0,3.21359654]
[1740434901894,3.2078,2590.0,2587.4,3.2078]
[1740434902200,2.99407176,2588.7,2588.2,3.2078]
[1740434902397,2.99407176,2588.7,2588.5,3.2078]
[1740434902796,5.8465,2590.3,2588.5,9.2078]
[1740434902991,5.8465,2590.3,2587.3,23.37686]
[1740434902992,3.2078,2590.1,2589.1,3.2078]
[1740434903202,3.2078,2589.2,2589.1,0.00579654]
[1740434903398,0.00579654,2589.7,2586.3,21.444]
[1740434903399,3.2078,2588.9,2586.3,3.2078]
[1740434903705,3.2078,2587.9,2586.3,3.2078]
[1740434903895,3.2078,2587.6,2586.3,3.2078]
[1740434904094,3.2078,2586.9,2586.3,3.2078]
[1740434904405,0.77336,2586.6,2585.9,3.2078]
[1740434904591,0.00579654,2586.9,2586.3,0.00579654]
[1740434904790,0.00579654,2586.9,2586.5,3.2078]
[1740434904995,3.2078,2588.7,2586.8,3.2078]
[1740434905201,0.77295,2588.0,2587.1,3.2078]
[1740434905500,3.2078,2587.3,2586.7,3.2078]
[1740434905699,0.77329,2586.8,2586.7,3.2078]
[1740434906000,3.2078,2588.4,2586.7,44.0078]
[1740434906297,3.2078,2588.4,2587.0,3.2078]
[1740434906496,0.00579654,2587.8,2587.3,3.2078]
[1740434906694,0.00579654,2587.8,2587.6,3.2078]
[1740434907206,0.77308,2587.5,2587.4,0.00579654]
[1740434907403,0.00579654,2587.8,2587.4,0.00579654]
[1740434907697,0.77308,2587.5,2587.4,0.00579654]
[1740434908096,0.77308,2587.5,2587.4,6.54e-06]
[1740434908502,6.77308,2587.5,2587.4,6.54e-06]
[1740434908896,0.77374,2585.3,2585.2,3.2078]
[1740434909099,7.07408,2587.0,2584.1,4.4351]
[1740434909100,0.7739,2584.8,2584.7,3.2078]
[1740434909397,0.7739,2584.8,2584.0,21.439]
[1740434909398,1.93444,2585.2,2584.2,40.8]
[1740434909599,1.93444,2585.2,2584.2,44.0078]
[1740434909600,3.2078,2585.2,2584.2,44.0078]
[1740434909800,3.2078,2584.3,2583.6,3.2078]
[1740434909998,1.93475,2584.8,2583.4,5.7343]
[1740434910196,0.77431,2583.4,2583.2,3.2078]
[1740434910395,1.93534,2584.0,2582.9,21.439]
[1740434910702,3.2078,2584.6,2583.0,3.2078]
[1740434911002,0.00579654,2583.7,2583.2,0.00579654]
[1740434911206,3.2078,2583.3,2582.4,12.01136732]
[1740434911401,0.77452,2582.7,2582.4,12.01136732]
[1740434911705,3.2078,2583.0,2582.4,8.80356732]
[1740434912001,0.77458,2582.5,2582.4,8.80356732]
[1740434912199,3.2078,2583.5,2582.4,8.80356732]
[1740434912402,3.2078,2583.5,2582.9,0.04763555]
[1740434912595,3.2078,2583.2,2582.4,8.80356732]
[1740434912796,3.98238,2582.5,2582.4,7.10904732]
[1740434913003,3.2078,2582.5,2582.2,0.00580821]
[1740434913198,3.2078,2582.7,2582.2,0.00580821]
[1740434913395,3.98233,2582.7,2582.2,0.00580821]
[1740434913610,0.77464,2582.3,2582.2,0.00580821]
[1740434913807,0.77467,2582.2,2582.1,9.28419071]
[1740434914003,3.2078,2582.4,2580.8,3.2078]
[1740434914206,3.2078,2581.9,2580.8,3.2078]
[1740434914402,3.2078,2582.1,2580.8,3.2078]
[1740434914605,3.2078,2581.3,2580.5,24.6538]
[1740434914902,3.2078,2581.3,2580.6,0.77515]
[1740434915103,0.00580821,2581.2,2580.8,3.2078]
[1740434915308,8.21e-06,2581.2,2581.1,3.9828]
[1740434915503,3.2078,2582.6,2581.1,3.2078]
[1740434915806,3.2078,2582.6,2580.6,7.94177558]
[1740434915807,3.2078,2582.6,2581.4,3.2078]
[1740434916111,0.77456,2582.6,2582.2,40.8]
[1740434916406,3.2078,2582.3,2582.2,40.8]
[1740434916914,3.2078,2582.6,2582.2,40.8]
[1740434917112,3.2078,2582.3,2582.2,40.8]
[1740434917407,0.00580821,2582.7,2582.2,50.0078]
[1740434917408,8.21e-06,2582.7,2582.2,50.0078]
[1740434917601,3.2078,2585.1,2583.0,3.2078]
[1740434917803,3.2078,2585.2,2584.6,3.2078]
[1740434918007,3.2078,2586.4,2584.7,3.2078]
[1740434918205,3.2078,2586.1,2584.7,3.2078]
[1740434918502,3.2078,2587.4,2586.0,3.2078]
[1740434918807,3.2078,2587.4,2584.1,0.3872]
[1740434918808,3.2078,2587.3,2586.1,3.2078]
[1740434919012,3.2078,2587.3,2585.8,3.2078]
[1740434919213,1.93339,2586.6,2585.4,3.2078]
[1740434919404,3.2078,2586.5,2585.4,3.2078]
[1740434919605,3.2078,2586.5,2586.3,0.00580821]
[1740434919807,0.77341,2586.4,2586.3,8.21e-06]
[1740434920007,5.8743,2587.2,2586.3,3.2078]
[1740434920209,3.2078,2587.0,2586.2,3.2078]
[1740434920406,8.37913761,2588.2,2586.5,3.2078]
[1740434920407,5.8743,2587.6,2586.5,3.2078]
[1740434920609,8.37913761,2588.2,2587.3,3.2078]
[1740434920806,0.77308,2587.5,2587.4,3.2078]
[1740434921007,8.37913761,2588.2,2587.4,3.2078]
[1740434921209,0.00579654,2588.0,2587.5,0.00579654]
[1740434921414,0.00579654,2588.0,2587.5,3.21359654]
[1740434921707,0.77296,2587.9,2587.8,3.2078]
[1740434922011,0.00579654,2588.0,2587.8,3.2078]
[1740434922703,1.93119,2589.6,2587.8,9.2078]
[1740434922904,0.77278,2588.5,2588.4,3.2078]
[1740434923104,3.2078,2589.3,2587.6,3.2078]
[1740434923310,1.9311,2589.7,2588.5,3.2078]
[1740434923612,1.9311,2589.7,2587.5,0.00579654]
[1740434923613,3.2078,2589.7,2589.1,3.2078]
[1740434923815,7.00442268,2590.8,2589.4,3.2078]
[1740434924011,7.00442268,2590.8,2589.9,3.2078]
[1740434924320,7.00442268,2590.8,2588.2,3.86431]
[1740434924321,7.00442268,2590.8,2590.5,3.2078]
[1740434924706,0.00579654,2590.9,2590.5,3.2078]
[1740434924911,0.00579654,2590.9,2590.8,3.2078]
[1740434925109,7.00442268,2592.1,2590.8,3.2078]
[1740434925317,7.00442268,2592.1,2591.6,3.2078]
[1740434925613,7.00442268,2592.1,2590.2,3.2078]
[1740434925614,3.2078,2591.7,2590.2,3.2078]
[1740434925817,21.451,2592.0,2590.2,3.2078]
[1740434925818,3.2078,2591.0,2590.2,3.2078]
[1740434926115,3.2078,2590.5,2588.8,3.2078]
[1740434926313,5.8964,2591.6,2588.8,3.2078]
[1740434926314,3.2078,2589.6,2588.8,3.2078]
[1740434926622,3.2078,2589.0,2588.0,3.2078]
[1740434926818,1.93189,2588.6,2587.6,3.2078]
[1740434927119,3.2078,2588.1,2587.6,3.2078]
[1740434927318,3.2078,2588.5,2588.2,0.00579654]
[1740434927505,3.21359654,2588.8,2588.2,0.00579654]
[1740434927710,3.2078,2588.5,2588.2,0.00579654]
[1740434927909,0.00579654,2588.8,2588.2,3.21359654]
[1740434928111,0.00579654,2588.8,2588.5,3.2078]
[1740434928306,0.00579654,2588.8,2588.2,3.21359654]
[1740434928510,0.00579654,2588.8,2588.5,3.2078]
[1740434928920,0.00579654,2588.8,2588.2,0.00579654]
[1740434929417,0.00579654,2588.8,2588.3,3.2078]
[1740434929610,0.00579654,2588.8,2588.5,3.2078]
[1740434930408,0.00579654,2588.8,2588.2,0.00579654]
[1740434930614,0.77284,2588.3,2588.2,0.00579654]
[1740434931225,0.00579654,2588.8,2588.2,6.00579654]
[1740434931419,0.77272,2588.7,2588.6,3.2078]
[1740434931622,0.77272,2588.7,2588.2,3.21359654]
[1740434931819,0.00579654,2588.8,2588.2,3.21359654]
[1740434931820,3.21359654,2588.8,2588.2,3.21359654]
[1740434932118,0.00579654,2588.8,2588.2,3.21359654]
[1740434932417,0.00579654,2588.8,2588.5,3.2078]
[1740434933012,0.00579654,2588.8,2588.5,9.2078]
[1740434933208,0.77248,2589.6,2588.7,0.77272]
[1740434933420,3.2078,2589.9,2588.6,3.2078]
[1740434933717,0.77266,2588.9,2588.8,3.2078]
[1740434934116,3.2078,2589.2,2588.4,3.2078]
[1740434934313,0.77277,2588.6,2588.4,3.2078]
[1740434934516,0.00579654,2589.1,2588.2,0.00579654]
[1740434934709,0.77284,2588.3,2588.2,0.00579654]
[1740434934914,3.98064,2588.3,2588.2,6.54e-06]
[1740434935514,9.98064,2588.3,2588.2,6.54e-06]
[1740434935717,3.98064,2588.3,2588.2,6.54e-06]
[1740434935917,0.77284,2588.3,2588.2,6.54e-06]
[1740434936114,5.8832,2588.7,2588.2,6.54e-06]
[1740434936310,0.00579654,2589.1,2588.4,3.2078]
[1740434936508,0.00579654,2589.1,2588.7,3.2078]
[1740434936716,0.00579654,2589.1,2589.0,3.2078]
[1740434936910,0.00579654,2589.1,2589.0,3.98043]
[1740434937117,3.2078,2589.8,2589.0,9.2078]
[1740434937315,3.2078,2589.8,2589.1,40.8]
[1740434937522,1.93107,2589.7,2589.1,40.8]
[1740434937826,3.2078,2589.6,2588.1,3.2078]
[1740434938021,3.2078,2589.6,2588.4,3.2078]
[1740434938315,0.00579654,2589.1,2588.6,0.00579654]
[1740434938509,0.00579654,2589.1,2588.6,3.21359654]
[1740434938709,0.00579654,2589.1,2588.7,40.8]
[1740434939108,3.2078,2589.8,2588.9,3.2078]
[1740434939413,3.2078,2590.4,2589.5,3.2078]
[1740434939809,3.2078,2590.4,2589.8,3.2078]
[1740434940211,3.2078,2591.5,2590.2,3.2078]
[1740434940413,3.2078,2591.5,2590.6,3.2078]
[1740434940611,5.63361733,2592.0,2591.3,3.2078]
[1740434941213,0.0057278,2591.9,2590.9,3.2078]
[1740434941417,0.0057278,2591.9,2591.4,0.00579654]
[1740434941917,3.2078,2593.1,2591.8,3.2078]
[1740434942125,3.2078,2592.5,2591.8,3.2078]
[1740434942322,3.2078,2592.2,2591.5,3.2078]
[1740434942522,3.2078,2592.2,2591.4,0.00579654]
[1740434942711,0.77189,2591.5,2591.4,6.54e-06]
[1740434943115,0.77241,2589.8,2589.7,3.2078]
[1740434943425,0.77239,2589.8,2589.7,3.2078]
[1740434943618,3.2078,2590.5,2589.7,9.2078]
[1740434943818,3.2078,2591.0,2590.0,3.2078]
[1740434944016,3.2078,2591.0,2589.4,1.93123]
[1740434944017,3.2078,2591.4,2590.6,3.2078]
[1740434944322,0.00579654,2590.8,2590.2,0.00579654]
[1740434944528,0.77225,2590.3,2590.2,6.54e-06]
[1740434944925,6.77225,2590.3,2590.2,6.54e-06]
[1740434945115,0.77278,2588.5,2588.4,3.2078]
[1740434945321,0.77293,2588.0,2587.9,5.4934]
[1740434945626,3.86186,2589.9,2587.8,3.2078]
[1740434945627,3.2078,2588.9,2587.8,3.2078]
[1740434946024,3.2078,2588.6,2587.2,3.2078]
[1740434946316,3.2078,2587.4,2586.1,3.2078]
[1740434946629,0.77349,2586.2,2585.6,14.98501545]
[1740434946814,3.2078,2586.9,2585.9,3.2078]
[1740434947120,1.93307,2587.1,2586.5,6.54e-06]
[1740434947311,3.2078,2586.6,2586.5,6.54e-06]
[1740434947518,3.21359654,2586.7,2586.5,6.54e-06]
[1740434947721,0.00579654,2586.7,2586.5,6.54e-06]
[1740434947923,0.00579654,2586.7,2586.6,0.77335]
[1740434948118,3.2078,2587.6,2586.6,3.2078]
[1740434948316,3.2078,2587.6,2586.9,3.2078]
[1740434948623,3.2078,2588.3,2586.9,3.2078]
[1740434948816,3.2078,2588.3,2587.2,3.2078]
[1740434949013,3.2078,2589.7,2587.8,3.2078]
[1740434949213,3.2078,2589.7,2588.6,3.2078]
[1740434949423,3.2078,2589.7,2588.9,3.2078]
[1740434949620,3.2078,2590.4,2589.5,3.2078]
[1740434949815,8.84141733,2590.4,2589.5,3.2078]
[1740434950027,5.63361733,2590.4,2590.3,3.2078]
[1740434950217,5.63361733,2590.4,2590.0,3.2078]
[1740434950418,7.01021922,2590.6,2590.0,3.2078]
[1740434950621,7.01021922,2590.6,2590.3,40.8]
[1740434950817,0.7723,2590.1,2590.0,3.2078]